fUSD/lending_fUSD_20260227
["ID","MTS","AMOUNT","RATE_DAILY","PERIOD"]
[406841912,1772224242305,-419.14871672,8.219e-05,2]
[406841913,1772224242315,-500.0,8.274e-05,2]
[406841914,1772224242324,-500.0,8.274e-05,2]
[406841915,1772224242334,-500.0,8.274e-05,2]
[406841916,1772224242343,-500.0,8.274e-05,2]
[406841917,1772224242353,-468.0,8.274e-05,2]
[406841918,1772224242362,-500.0,8.274e-05,2]
[406841919,1772224242372,-150.0,8.274e-05,2]
[406841920,1772224242381,-150.0,8.274e-05,2]
[406841921,1772224242390,-155.24410738,8.274e-05,2]
[406841922,1772224242400,-500.0,8.274e-05,2]
[406841923,1772224242410,-500.0,8.274e-05,2]
[406841924,1772224242419,-500.0,8.274e-05,2]
[406841925,1772224242431,-166.66,8.327e-05,2]
[406841926,1772224242441,-500.0,8.329e-05,2]
[406841927,1772224242451,-500.0,8.329e-05,2]
[406841928,1772224242459,-500.0,8.329e-05,2]
[406841929,1772224242469,-164.37590583,8.329e-05,2]
[406841930,1772224242478,-468.0,8.329e-05,2]
[406841931,1772224242487,-500.0,8.329e-05,2]
[406841932,1772224242497,-200.0,8.329e-05,2]
[406841933,1772224242506,-238.75555333,8.329e-05,2]
[406841934,1772224242516,-500.0,8.329e-05,2]
[406841935,1772224242525,-500.0,8.329e-05,2]
[406841936,1772224242536,-500.0,8.329e-05,2]
[406841937,1772224242546,-500.0,8.383e-05,2]
[406841938,1772224242555,-500.0,8.383e-05,2]
[406841939,1772224242566,-500.0,8.383e-05,2]
[406841940,1772224242575,-468.0,8.383e-05,2]
[406841941,1772224242585,-500.0,8.383e-05,2]
[406841942,1772224242595,-500.0,8.383e-05,2]
[406841943,1772224242606,-500.0,8.383e-05,2]
[406841944,1772224242615,-500.0,8.383e-05,2]
[406841945,1772224242624,-1486.48,8.393e-05,2]
[406841946,1772224242634,-1000.0,8.402e-05,2]
[406841947,1772224242644,-1000.0,8.402e-05,2]
[406841948,1772224242653,-4265.01,8.405e-05,2]
[406841949,1772224242662,-500.0,8.411e-05,2]
[406841950,1772224242671,-1000.0,8.428e-05,2]
[406841951,1772224242681,-1000.0,8.43e-05,2]
[406841952,1772224242691,-1000.0,8.438e-05,2]
[406841953,1772224242701,-500.0,8.438e-05,2]
[406841954,1772224242710,-500.0,8.438e-05,2]
[406841955,1772224242721,-500.0,8.438e-05,2]
[406841956,1772224242730,-468.0,8.438e-05,2]
[406841957,1772224242741,-500.0,8.438e-05,2]
[406841958,1772224242751,-500.0,8.438e-05,2]
[406841959,1772224242761,-500.0,8.438e-05,2]
[406841960,1772224242771,-500.0,8.438e-05,2]
[406841961,1772224242781,-1000.0,8.443e-05,2]
[406841962,1772224242791,-1000.0,8.446e-05,2]
[406841963,1772224242802,-1000.0,8.45e-05,2]
[406841964,1772224242811,-1000.0,8.456e-05,2]
[406841965,1772224242822,-1000.0,8.456e-05,2]
[406841966,1772224242832,-1000.0,8.459e-05,2]
[406841967,1772224242841,-1000.0,8.467e-05,2]
[406841968,1772224242850,-1000.0,8.476e-05,2]
[406841969,1772224242860,-443.81782163,8.478e-05,2]
[406841970,1772224242870,-1000.0,8.483e-05,2]
[406841971,1772224242888,-399.73245123,8.493e-05,2]
[406841972,1772224242911,-500.0,8.493e-05,2]
[406841973,1772224242926,-500.0,8.493e-05,2]
[406841974,1772224242937,-468.0,8.493e-05,2]
[406841975,1772224242946,-500.0,8.493e-05,2]
[406841976,1772224242957,-500.0,8.493e-05,2]
[406841978,1772224242967,-500.0,8.493e-05,2]
[406841979,1772224242978,-457.08298048,8.493e-05,2]
[406841980,1772224242988,-1000.0,8.495e-05,2]
[406841981,1772224242997,-1000.0,8.5e-05,2]
[406841982,1772224243007,-1000.0,8.502e-05,2]
[406841983,1772224243017,-1000.0,8.503e-05,2]
[406841987,1772224243027,-1000.0,8.508e-05,2]
[406841989,1772224243037,-1000.0,8.51e-05,2]
[406841990,1772224243047,-1000.0,8.512e-05,2]
[406841991,1772224243056,-1000.0,8.52e-05,2]
[406841992,1772224243067,-1000.0,8.52e-05,2]
[406841993,1772224243076,-1000.0,8.52e-05,2]
[406841994,1772224243085,-1000.0,8.522e-05,2]
[406841995,1772224243094,-1000.0,8.522e-05,2]
[406841996,1772224243105,-1000.0,8.526e-05,2]
[406841997,1772224243118,-1000.0,8.529e-05,2]
[406841998,1772224243128,-151.0,8.534e-05,2]
[406841999,1772224243137,-1000.0,8.54e-05,2]
[406842000,1772224243147,-1000.0,8.543e-05,2]
[406842001,1772224243159,-1000.0,8.546e-05,2]
[406842002,1772224243168,-1000.0,8.547e-05,2]
[406842003,1772224243178,-500.0,8.548e-05,2]
[406842004,1772224243188,-500.0,8.548e-05,2]
[406842005,1772224243197,-468.0,8.548e-05,2]
[406842006,1772224243206,-395.41955894,8.548e-05,2]
[406842007,1772224243216,-500.0,8.548e-05,2]
[406842008,1772224243225,-500.0,8.548e-05,2]
[406842009,1772224243234,-1000.0,8.558e-05,2]
[406842010,1772224243244,-159.35,8.559e-05,2]
[406842011,1772224243253,-1000.0,8.559e-05,2]
[406842012,1772224243263,-1000.0,8.561e-05,2]
[406842013,1772224243272,-1000.0,8.57e-05,2]
[406842014,1772224243281,-166.66,8.577e-05,2]
[406842015,1772224243291,-1000.0,8.581e-05,2]
[406842016,1772224243301,-1000.0,8.581e-05,2]
[406842017,1772224243310,-1000.0,8.583e-05,2]
[406842018,1772224243319,-1000.0,8.584e-05,2]
[406842019,1772224243328,-1000.0,8.594e-05,2]
[406842020,1772224243337,-1000.0,8.597e-05,2]
[406842021,1772224243347,-1000.0,8.601e-05,2]
[406842022,1772224243356,-1000.0,8.602e-05,2]
[406842023,1772224243365,-500.0,8.603e-05,2]
[406842024,1772224243374,-500.0,8.603e-05,2]
[406842025,1772224243383,-468.0,8.603e-05,2]
[406842026,1772224243393,-150.0,8.603e-05,2]
[406842027,1772224243402,-500.0,8.603e-05,2]
[406842028,1772224243411,-1000.0,8.606e-05,2]
[406842029,1772224243420,-1000.0,8.609e-05,2]
[406842030,1772224243430,-1000.0,8.61e-05,2]
[406842031,1772224243439,-1000.0,8.61e-05,2]
[406842032,1772224243449,-1000.0,8.612e-05,2]
[406842033,1772224243458,-1000.0,8.616e-05,2]
[406842034,1772224243468,-1000.0,8.62e-05,2]
[406842035,1772224243477,-1000.0,8.624e-05,2]
[406842036,1772224243487,-1000.0,8.633e-05,2]
[406842037,1772224243497,-279.361092,8.633e-05,2]
[406842038,1772224243506,-279.361092,8.633e-05,2]
[406842040,1772224243515,-279.361092,8.633e-05,2]
[406842041,1772224243524,-279.361092,8.633e-05,2]
[406842043,1772224243533,-255.150202,8.633e-05,2]
[406842044,1772224243542,-255.150202,8.633e-05,2]
[406842045,1772224243551,-255.150202,8.633e-05,2]
[406842046,1772224243560,-255.150202,8.633e-05,2]
[406842047,1772224243571,-1000.0,8.635e-05,2]
[406842048,1772224243580,-1000.0,8.638e-05,2]
[406842049,1772224243589,-1000.0,8.638e-05,2]
[406842050,1772224243598,-1000.0,8.639e-05,2]
[406842051,1772224243608,-1000.0,8.649e-05,2]
[406842052,1772224243617,-1000.0,8.65e-05,2]
[406842053,1772224243626,-1000.0,8.653e-05,2]
[406842054,1772224243635,-1000.0,8.653e-05,2]
[406842055,1772224243644,-1000.0,8.655e-05,2]
[406842056,1772224243653,-500.0,8.657e-05,2]
[406842057,1772224243661,-500.0,8.657e-05,2]
[406842058,1772224243670,-468.0,8.657e-05,2]
[406842059,1772224243679,-500.0,8.657e-05,2]
[406842060,1772224243688,-49360.0,8.658e-05,2]
[406842061,1772224243697,-1000.0,8.666e-05,2]
[406842062,1772224243706,-1486.48,8.667e-05,2]
[406842063,1772224243715,-1000.0,8.669e-05,2]
[406842064,1772224243724,-1000.0,8.672e-05,2]
[406842065,1772224243733,-168.84764437,8.673e-05,2]
[406842066,1772224243742,-500.0,8.673e-05,2]
[406842067,1772224243751,-500.0,8.673e-05,2]
[406842068,1772224243759,-500.0,8.673e-05,2]
[406842069,1772224243768,-500.0,8.673e-05,2]
[406842070,1772224243777,-500.0,8.673e-05,2]
[406842071,1772224243787,-1000.0,8.674e-05,2]
[406842072,1772224243798,-1000.0,8.674e-05,2]
[406842073,1772224243819,-191.32,8.676e-05,2]
[406842074,1772224243830,-212493.60098654,8.709e-05,2]
[406842075,1772224243839,-279.361092,8.709e-05,2]
[406842076,1772224243848,-279.361092,8.709e-05,2]
[406842077,1772224243857,-279.361092,8.709e-05,2]
[406842078,1772224243866,-279.361088,8.709e-05,2]
[406842079,1772224243875,-255.150202,8.709e-05,2]
[406842080,1772224243884,-255.150202,8.709e-05,2]
[406842081,1772224243893,-255.150202,8.709e-05,2]
[406842082,1772224243902,-255.15021,8.709e-05,2]
[406842083,1772224243910,-500.0,8.712e-05,2]
[406842084,1772224243920,-500.0,8.712e-05,2]
[406842085,1772224243929,-468.0,8.712e-05,2]
[406842086,1772224243938,-500.0,8.712e-05,2]
[406842087,1772224243947,-4265.01,8.738e-05,2]
[406842088,1772224243956,-500.0,8.767e-05,2]
[406842089,1772224243964,-497.09622115,8.767e-05,2]
[406842090,1772224243973,-468.0,8.767e-05,2]
[406842091,1772224243982,-500.0,8.767e-05,2]
[406842092,1772224243991,-3292.0,8.819e-05,2]
[406842093,1772224244000,-806.17,8.822e-05,2]
[406842094,1772224244009,-500.0,8.822e-05,2]
[406842095,1772224244018,-468.0,8.822e-05,2]
[406842096,1772224244027,-500.0,8.822e-05,2]
[406842097,1772224244036,-166.66,8.827e-05,2]
[406842098,1772224244044,-736.0,8.837e-05,2]
[406842099,1772224244053,-35934.0,8.844e-05,2]
[406842100,1772224244063,-500.0,8.877e-05,2]
[406842101,1772224244072,-468.0,8.877e-05,2]
[406842102,1772224244080,-500.0,8.877e-05,2]
[406842103,1772224244090,-150.0,8.893e-05,2]
[406842104,1772224244099,-60493.91047619,8.92e-05,2]
[406842105,1772224244108,-500.0,8.931e-05,2]
[406842106,1772224244122,-468.0,8.931e-05,2]
[406842107,1772224244133,-500.0,8.931e-05,2]
[406842108,1772224244142,-1486.48,8.941e-05,2]
[406842109,1772224244151,-500.0,8.986e-05,2]
[406842110,1772224244161,-468.0,8.986e-05,2]
[406842111,1772224244170,-500.0,8.986e-05,2]
[406842112,1772224244180,-500.0,9.041e-05,2]
[406842113,1772224244189,-468.0,9.041e-05,2]
[406842114,1772224244198,-500.0,9.041e-05,2]
[406842115,1772224244207,-4265.01,9.072e-05,2]
[406842116,1772224244216,-500.0,9.096e-05,2]
[406842117,1772224244224,-468.0,9.096e-05,2]
[406842118,1772224244233,-500.0,9.096e-05,2]
[406842119,1772224244242,-191.32,9.132e-05,2]
[406842120,1772224244251,-500.0,9.151e-05,2]
[406842121,1772224244259,-468.0,9.151e-05,2]
[406842122,1772224244269,-563.0,9.151e-05,2]
[406842123,1772224244278,-357.0,9.205e-05,2]
[406842124,1772224244287,-468.0,9.205e-05,2]
[406842125,1772224244295,-1486.48,9.215e-05,2]
[406842126,1772224244304,-245.89976149,9.221e-05,2]
[406842127,1772224244313,-440.69410624,9.221e-05,2]
[406842128,1772224244322,-820.22794059,9.221e-05,2]
[406842129,1772224244332,-1000.0,9.221e-05,2]
[406842130,1772224244341,-1000.0,9.247e-05,2]
[406842131,1772224244350,-468.0,9.26e-05,2]
[406842132,1772224244360,-468.0,9.315e-05,2]
[406842133,1772224244369,-500.0,9.315e-05,2]
[406842134,1772224244379,-468.0,9.37e-05,2]
[406842135,1772224244388,-4265.01,9.405e-05,2]
[406842136,1772224244397,-468.0,9.424e-05,2]
[406842137,1772224244407,-266.38,9.425e-05,2]
[406842138,1772224244416,-486.0,9.479e-05,2]
[406842139,1772224244425,-1486.48,9.489e-05,2]
[406842140,1772224244435,-151.0,9.589e-05,2]
[406842141,1772224244444,-151.0,9.589e-05,2]
[406842142,1772224244454,-191.32,9.589e-05,2]
[406842143,1772224244463,-350.0,9.609e-05,2]
[406842144,1772224244472,-806.17,9.624e-05,2]
[406842145,1772224244482,-9999.99,9.67e-05,2]
[406842146,1772224244491,-17550.49,9.67e-05,2]
[406842147,1772224244500,-4609.0,9.7e-05,2]
[406842148,1772224244625,-1252.0,9.72e-05,2]
[406842149,1772224244651,-4265.01,9.738e-05,2]
[406842150,1772224244661,-461.818058,9.759e-05,2]
[406842151,1772224244670,-350.0,9.762e-05,2]
[406842152,1772224244680,-1486.48,9.763e-05,2]
[406842153,1772224244689,-1500.0,9.768e-05,2]
[406842154,1772224244700,-350.0,9.797e-05,2]
[406842155,1772224244710,-350.0,9.816e-05,2]
[406842156,1772224244719,-350.0,9.826e-05,2]
[406842157,1772224244728,-322.16,9.889e-05,2]
[406842158,1772224244739,-157.39797842,0.0001,2]
[406842159,1772224244748,-151.0,0.0001,2]
[406842160,1772224244757,-151.0,0.0001,2]
[406842161,1772224244767,-151.0,0.0001,2]
[406842162,1772224244777,-151.0,0.0001,2]
[406842163,1772224244787,-151.0,0.0001,2]
[406842164,1772224244797,-151.0,0.0001,2]
[406842165,1772224244807,-151.0,0.0001,2]
[406842166,1772224244817,-151.0,0.0001,2]
[406842167,1772224244827,-200.0,0.0001,2]
[406842168,1772224244838,-500.0,0.0001,2]
[406842169,1772224244847,-151.0,0.0001,2]
[406842170,1772224244856,-500.0,0.0001,2]
[406842171,1772224244867,-151.0,0.0001,2]
[406842172,1772224244876,-151.0,0.0001,2]
[406842173,1772224244886,-500.0,0.0001,2]
[406842174,1772224244895,-151.0,0.0001,2]
[406842175,1772224244906,-151.0,0.0001,2]
[406842176,1772224244916,-500.0,0.0001,2]
[406842177,1772224244927,-151.0,0.0001,2]
[406842178,1772224244936,-151.0,0.0001,2]
[406842179,1772224244946,-151.0,0.0001,2]
[406842180,1772224244955,-500.0,0.0001,2]
[406842181,1772224244965,-151.0,0.0001,2]
[406842182,1772224244975,-500.0,0.0001,2]
[406842183,1772224244985,-151.0,0.0001,2]
[406842184,1772224244995,-500.0,0.0001,2]
[406842185,1772224245005,-500.0,0.0001,2]
[406842186,1772224245016,-500.0,0.0001,2]
[406842187,1772224245027,-500.0,0.0001,2]
[406842188,1772224245037,-151.0,0.0001,2]
[406842189,1772224245046,-500.0,0.0001,2]
[406842190,1772224245055,-500.0,0.0001,2]
[406842191,1772224245065,-151.0,0.0001,2]
[406842192,1772224245074,-500.0,0.0001,2]
[406842193,1772224245084,-151.0,0.0001,2]
[406842194,1772224245094,-500.0,0.0001,2]
[406842195,1772224245103,-500.0,0.0001,2]
[406842196,1772224245115,-500.0,0.0001,2]
[406842197,1772224245124,-151.0,0.0001,2]
[406842198,1772224245133,-500.0,0.0001,2]
[406842199,1772224245144,-500.0,0.0001,2]
[406842200,1772224245155,-151.0,0.0001,2]
[406842201,1772224245165,-500.0,0.0001,2]
[406842202,1772224245175,-151.0,0.0001,2]
[406842203,1772224245186,-151.0,0.0001,2]
[406842204,1772224245198,-500.0,0.0001,2]
[406842205,1772224245207,-151.0,0.0001,2]
[406842206,1772224245217,-500.0,0.0001,2]
[406842207,1772224245227,-151.0,0.0001,2]
[406842208,1772224245237,-500.0,0.0001,2]
[406842209,1772224245246,-151.0,0.0001,2]
[406842210,1772224245255,-500.0,0.0001,2]
[406842211,1772224245264,-151.0,0.0001,2]
[406842212,1772224245275,-500.0,0.0001,2]
[406842213,1772224245285,-151.0,0.0001,2]
[406842214,1772224245295,-151.0,0.0001,2]
[406842215,1772224245304,-1018.6922773,0.0001,2]
[406842216,1772224245313,-151.0,0.0001,2]
[406842217,1772224245322,-151.0,0.0001,2]
[406842218,1772224245332,-151.0,0.0001,2]
[406842219,1772224245341,-512.00769,0.0001,2]
[406842220,1772224245351,-512.0077,0.0001,2]
[406842221,1772224245361,-512.00769,0.0001,2]
[406842222,1772224245370,-512.00769,0.0001,2]
[406842223,1772224245380,-512.00769,0.0001,2]
[406842224,1772224245389,-512.0077,0.0001,2]
[406842225,1772224245399,-4000.0,0.00010027,2]
[406842226,1772224245409,-1486.48,0.00010037,2]
[406842227,1772224245418,-191.32,0.00010046,2]
[406842228,1772224245428,-151.0,0.00010055,2]
[406842229,1772224245437,-4265.01,0.00010071,2]
[406842230,1772224245447,-151.0,0.0001011,2]
[406842231,1772224245456,-247.7095935,0.0001012,2]
[406842232,1772224245466,-151.0,0.00010165,2]
[406842233,1772224245475,-151.0,0.0001022,2]
[406842234,1772224245485,-1000.0,0.00010274,2]
[406842235,1772224245494,-151.0,0.00010275,2]
[406842236,1772224245503,-4000.0,0.00010278,2]
[406842237,1772224245512,-500.0,0.000103,2]
[406842238,1772224245522,-500.0,0.000103,2]
[406842239,1772224245531,-500.0,0.000103,2]
[406842240,1772224245540,-500.0,0.000103,2]
[406842241,1772224245549,-500.0,0.000103,2]
[406842242,1772224245559,-500.0,0.000103,2]
[406842243,1772224245569,-500.0,0.000103,2]
[406842244,1772224245578,-900.0,0.000103,2]
[406842245,1772224245591,-500.0,0.000103,2]
[406842246,1772224245600,-866.78656282,0.000103,2]
[406842247,1772224245609,-1486.48,0.00010311,2]
[406842248,1772224245618,-2000.0,0.00010316,2]
[406842249,1772224245628,-151.0,0.0001033,2]
[406842250,1772224245637,-266.38,0.00010347,2]
[406842251,1772224245646,-151.0,0.00010385,2]
[406842252,1772224245656,-4265.01,0.00010404,2]
[406842253,1772224245665,-151.0,0.0001044,2]
[406842254,1772224245674,-151.0,0.00010495,2]
[406842255,1772224245683,-191.32,0.00010502,2]
[406842256,1772224245692,-4000.0,0.00010529,2]
[406842257,1772224245702,-843.02375602,0.00010534,2]
[406842258,1772224245711,-200.0,0.00010548,2]
[406842259,1772224245720,-234.50005133,0.0001055,2]
[406842260,1772224245729,-1486.48,0.00010585,2]
[406842261,1772224245738,-16116.0,0.00010634,2]
[406842262,1772224245748,-500.0,0.00010658,2]
[406842263,1772224245757,-2437.0,0.0001067,2]
[406842264,1772224245766,-1194.0,0.00010696,2]
[406842265,1772224245776,-4265.01,0.00010738,2]
[406842266,1772224245785,-4000.0,0.00010779,2]
[406842267,1772224245794,-247.7095935,0.00010799,2]
[406842268,1772224245803,-1031.76193079,0.000108,2]
[406842269,1772224245813,-1486.50057164,0.00010859,2]
[406842270,1772224245822,-1459.15577028,0.000109,2]
[406842272,1772224245831,-500.0,0.00010939,2]
[406842273,1772224245840,-500.0,0.00010939,2]
[406842274,1772224245850,-500.0,0.00010939,2]
[406842275,1772224245859,-500.0,0.00010939,2]
[406842276,1772224245868,-500.0,0.00010939,2]
[406842277,1772224245877,-500.0,0.00010939,2]
[406842278,1772224245886,-250.0,0.00010939,2]
[406842279,1772224245895,-500.0,0.00010939,2]
[406842280,1772224245905,-344.25499231,0.00010939,2]
[406842281,1772224245914,-500.0,0.00010939,2]
[406842282,1772224245924,-500.0,0.00010939,2]
[406842284,1772224245934,-500.0,0.00010939,2]
[406842285,1772224245944,-174.61919141,0.00010939,2]
[406842286,1772224245953,-500.0,0.00010939,2]
[406842287,1772224245963,-500.0,0.00010939,2]
[406842288,1772224245972,-151.0,0.00010939,2]
[406842289,1772224245981,-156.587,0.00010939,2]
[406842290,1772224245991,-500.0,0.00010939,2]
[406842291,1772224246000,-162.380719,0.00010939,2]
[406842292,1772224246010,-500.0,0.00010939,2]
[406842293,1772224246019,-160.2557375,0.00010939,2]
[406842294,1772224246028,-500.0,0.00010939,2]
[406842295,1772224246037,-500.0,0.00010939,2]
[406842296,1772224246047,-500.0,0.00010939,2]
[406842297,1772224246056,-500.0,0.00010939,2]
[406842298,1772224246066,-500.0,0.00010939,2]
[406842299,1772224246075,-500.0,0.00010939,2]
[406842300,1772224246085,-500.0,0.00010939,2]
[406842301,1772224246094,-500.0,0.00010939,2]
[406842302,1772224246105,-668.65185757,0.00010939,2]
[406842303,1772224246117,-500.0,0.00010939,2]
[406842304,1772224246126,-500.0,0.00010939,2]
[406842305,1772224246137,-151.0,0.00010939,2]
[406842306,1772224246146,-151.0,0.00010939,2]
[406842307,1772224246158,-151.0,0.00010939,2]
[406842308,1772224246167,-151.0,0.00010939,2]
[406842309,1772224246178,-151.0,0.00010939,2]
[406842310,1772224246188,-151.0,0.00010939,2]
[406842311,1772224246198,-151.0,0.00010939,2]
[406842312,1772224246208,-151.0,0.00010939,2]
[406842313,1772224246217,-289.73982287,0.00010939,2]
[406842314,1772224246228,-500.0,0.00010959,2]
[406842315,1772224246238,-166.66,0.00010959,2]
[406842316,1772224246248,-150.0,0.00010959,2]
[406842317,1772224246257,-151.0,0.00010959,2]
[406842318,1772224246267,-151.0,0.00010959,2]
[406842319,1772224246276,-162.492537,0.00010959,2]
[406842320,1772224246285,-151.0,0.00010959,2]
[406842321,1772224246294,-151.0,0.00010959,2]
[406842322,1772224246304,-151.0,0.00010959,2]
[406842323,1772224246313,-151.0,0.00010959,2]
[406842324,1772224246323,-151.0,0.00010959,2]
[406842326,1772224246332,-151.0,0.00010959,2]
[406842327,1772224246342,-278.240704,0.00010959,2]
[406842328,1772224246351,-150.0,0.00010959,2]
[406842329,1772224246360,-191.32,0.00010959,2]
[406842330,1772224246369,-693.3919763,0.00010994,2]
[406842331,1772224246379,-247.7095935,0.00010994,2]
[406842332,1772224246388,-4000.0,0.0001103,2]
[406842333,1772224246398,-719.04747942,0.00011049,2]
[406842334,1772224246407,-166.66,0.00011068,2]
[406842335,1772224246416,-4265.01,0.00011071,2]
[406842336,1772224246425,-200.0,0.00011096,2]
[406842337,1772224246435,-7715.59915239,0.00011099,2]
[406842338,1772224246444,-7715.59915239,0.00011099,2]
[406842339,1772224246453,-7715.59915239,0.00011099,2]
[406842340,1772224246463,-7715.59915239,0.00011099,2]
[406842341,1772224246472,-35181.08820383,0.00011099,2]
[406842342,1772224246481,-35181.08820376,0.00011099,2]
[406842343,1772224246491,-35181.08820376,0.00011099,2]
[406842344,1772224246502,-35181.08820376,0.00011099,2]
[406842345,1772224246512,-745.65223616,0.00011104,2]
[406842346,1772224246521,-773.2413689,0.00011159,2]
[406842347,1772224246530,-166.66,0.00011178,2]
[406842348,1772224246539,-801.85129955,0.00011214,2]
[406842349,1772224246549,-831.51979763,0.00011269,2]
[406842350,1772224246559,-166.66,0.00011288,2]
[406842351,1772224246568,-1000.0,0.00011301,2]
[406842352,1772224246577,-862.28603014,0.00011324,2]
[406842353,1772224246586,-894.19061326,0.00011379,2]
[406842354,1772224246595,-166.66,0.00011397,2]
[406842355,1772224246604,-4265.01,0.00011404,2]
[406842356,1772224246614,-191.32,0.00011416,2]
[406842357,1772224246623,-927.27566595,0.00011434,2]
[406842358,1772224246632,-181.08010149,0.00011487,2]
[406842359,1772224246642,-961.58486559,0.00011489,2]
[406842360,1772224246651,-8407.31,0.00011507,2]
[406842361,1772224246660,-166.66,0.00011507,2]
[406842362,1772224246669,-2285.94,0.00011507,2]
[406842363,1772224246678,-997.16350561,0.00011544,2]
[406842364,1772224246687,-221.99,0.00011622,2]
[406842365,1772224246697,-200.0,0.00011644,2]
[406842366,1772224246707,-7715.59915239,0.00011644,2]
[406842367,1772224246716,-35181.08820376,0.00011649,2]
[406842368,1772224246725,-4265.01,0.00011737,2]
[406842369,1772224246734,-191.32,0.00011872,2]
[406842370,1772224246743,-221.99,0.00011976,2]
[406842371,1772224246752,-187.78006525,0.00012035,2]
[406842372,1772224246762,-767.0,0.0001206,2]
[406842373,1772224246771,-150.0,0.0001206,2]
[406842374,1772224246780,-150.0,0.0001206,2]
[406842376,1772224246789,-167.0,0.0001206,2]
[406842377,1772224246798,-4265.01,0.00012071,2]
[406842378,1772224246807,-200.0,0.00012192,2]
[406842379,1772224246816,-1018.69227729,0.0001227,2]
[406842380,1772224246825,-1459.15577025,0.00012296,2]
[406842381,1772224246834,-1000.0,0.00012329,2]
[406842382,1772224246843,-500.25,0.00012329,2]
[406842383,1772224246852,-191.32,0.00012329,2]
[406842384,1772224246862,-4265.01,0.00012404,2]
[406842385,1772224246873,-715.0,0.00012525,2]
[406842386,1772224246883,-150.0,0.00012525,2]
[406842387,1772224246893,-265.0,0.00012525,2]
[406842388,1772224246903,-194.72792766,0.00012583,2]
[406842389,1772224246912,-500.0,0.00012658,2]
[406842390,1772224246922,-4265.01,0.00012737,2]
[406842391,1772224246932,-200.0,0.0001274,2]
[406842392,1772224246942,-500.02848491,0.0001289,2]
[406842393,1772224246951,-500.0,0.0001289,2]
[406842394,1772224246960,-500.0,0.0001289,2]
[406842395,1772224246970,-500.0,0.0001289,2]
[406842396,1772224246980,-500.0,0.0001289,2]
[406842397,1772224246991,-500.0,0.0001289,2]
[406842398,1772224247001,-500.0,0.0001289,2]
[406842399,1772224247010,-500.0,0.0001289,2]
[406842400,1772224247019,-500.0,0.0001289,2]
[406842401,1772224247028,-500.0,0.0001289,2]
[406842402,1772224247036,-500.0,0.0001289,2]
[406842403,1772224247046,-500.0,0.0001289,2]
[406842404,1772224247055,-7715.59915239,0.00012896,2]
[406842405,1772224247064,-35181.08820376,0.000129,2]
[406842406,1772224247073,-219.122105,0.0001292,2]
[406842407,1772224247082,-1077.575468,0.00013013,2]
[406842408,1772224247091,-4265.01,0.0001307,2]
[406842409,1772224247100,-201.93286099,0.00013131,2]
[406842410,1772224247114,-200.0,0.00013288,2]
[406842411,1772224247124,-200.139566,0.00013357,2]
[406842412,1772224247133,-4265.01,0.00013404,2]
[406842413,1772224247142,-3240.0,0.00013425,2]
[406842414,1772224247153,-474.98,0.00013627,2]
[406842415,1772224247162,-474.98,0.00013647,2]
[406842416,1772224247171,-474.98,0.00013668,2]
[406842417,1772224247180,-209.40437684,0.00013679,2]
[406842418,1772224247190,-474.98,0.00013687,2]
[406842419,1772224247199,-645.74125194,0.00013698,2]
[406842420,1772224247208,-500.0,0.00013698,2]
[406842421,1772224247217,-500.0,0.00013698,2]
[406842422,1772224247227,-500.0,0.00013698,2]